fUST/lending_fUST_20260414
["ID","MTS","AMOUNT","RATE_DAILY","PERIOD"]
[420452989,1776099044890,-1338.21453789,0.00013893,2]
[420452990,1776099044914,-4198.96,0.00013972,2]
[420452991,1776099044923,-500.0,0.00013972,2]
[420452992,1776099044933,-325.1962115,0.0001402,2]
[420452993,1776099044953,-2000.0,0.000142,7]
[420452994,1776099044967,-4198.96,0.00014246,2]
[420452995,1776099044977,-500.0,0.00014246,2]
[420452996,1776099044989,-151.0,0.000144,2]
[420452997,1776099045008,-4198.96,0.0001452,2]
[420452998,1776099045020,-500.0,0.0001452,2]
[420452999,1776099045030,-643.0,0.00014586,2]
[420453000,1776099045043,-1130.442,0.00014586,2]
[420453001,1776099045057,-4198.96,0.00014794,2]
[420453002,1776099045067,-500.0,0.00014794,2]
[420453003,1776099045083,-151.0,0.000149,2]
[420453004,1776099045101,-800.0,0.0001498,2]
[420453005,1776099045122,-10368.48154708,0.00015,2]
[420453006,1776099045132,-403.28529426,0.00015,2]
[420453007,1776099045145,-378.0,0.00015,2]
[420453008,1776099045162,-869.0,0.00015,2]
[420453010,1776099045173,-160.0,0.00015,2]
[420453011,1776099045186,-300.0,0.00015,2]
[420453012,1776099045222,-300.0,0.00015,2]
[420453013,1776099045234,-160.0,0.00015043,2]
[420453015,1776099045253,-160.0,0.00015043,2]
[420453016,1776099045277,-160.0,0.00015043,2]
[420453017,1776099045290,-500.0,0.00015067,2]
[420453018,1776099045306,-4198.96,0.00015068,2]
[420453020,1776099045321,-500.0,0.00015068,2]
[420453021,1776099045333,-200.738512,0.00015068,2]
[420453024,1776099045354,-10368.48154708,0.000152,2]
[420453025,1776099045373,-10000.0,0.00015205,2]
[420453026,1776099045383,-176.533,0.00015215,2]
[420453027,1776099045399,-500.0,0.00015298,2]
[420453028,1776099045413,-10368.48154708,0.000153,2]
[420453029,1776099045425,-695.44346546,0.00015335,2]
[420453030,1776099045442,-4198.96,0.00015342,2]
[420453032,1776099045476,-500.0,0.00015342,2]
[420453033,1776099045485,-196.4229743,0.00015454,2]
[420453034,1776099045521,-10368.48154708,0.000155,2]
[420453035,1776099045531,-151.0,0.000155,2]
[420453036,1776099045562,-1139.76346984,0.00015573,30]
[420453037,1776099045586,-352.339754,0.00015615,2]
[420453038,1776099045608,-4198.96,0.00015616,2]
[420453039,1776099045639,-500.0,0.00015616,2]
[420453041,1776099045658,-800.0,0.0001567,2]
[420453042,1776099045697,-10368.48154708,0.000157,2]
[420453043,1776099045714,-10368.48154708,0.000158,2]
[420453044,1776099045741,-500.0,0.0001589,2]
[420453045,1776099045778,-500.0,0.0001589,2]
[420453046,1776099045797,-500.0,0.0001589,2]
[420453047,1776099045814,-500.0,0.0001589,2]
[420453049,1776099045842,-500.0,0.0001589,2]
[420453050,1776099045855,-500.0,0.0001589,2]
[420453051,1776099045868,-500.0,0.0001589,2]
[420453052,1776099045910,-500.0,0.0001589,2]
[420453053,1776099045920,-500.0,0.0001589,2]
[420453054,1776099045931,-500.0,0.0001589,2]
[420453055,1776099045948,-500.0,0.0001589,2]
[420453056,1776099045959,-500.0,0.0001589,2]
[420453057,1776099045969,-500.0,0.0001589,2]
[420453059,1776099045990,-500.0,0.0001589,2]
[420453060,1776099046005,-500.0,0.0001589,2]
[420453061,1776099046015,-500.0,0.0001589,2]
[420453062,1776099046026,-500.0,0.0001589,2]
[420453063,1776099046039,-500.0,0.0001589,2]
[420453064,1776099046049,-500.0,0.0001589,2]
[420453065,1776099046059,-500.0,0.0001589,2]
[420453066,1776099046070,-500.0,0.0001589,2]
[420453067,1776099046085,-500.0,0.0001589,2]
[420453068,1776099046095,-500.0,0.0001589,2]
[420453069,1776099046105,-500.0,0.0001589,2]
[420453070,1776099046116,-584.86606406,0.0001589,2]
[420453071,1776099046134,-4198.96,0.0001589,2]
[420453073,1776099046144,-500.0,0.0001589,2]
[420453074,1776099046154,-3000.0,0.00016,2]
[420453075,1776099046164,-10368.48154708,0.00016,2]
[420453076,1776099046176,-151.0,0.00016,2]
[420453077,1776099046185,-3000.0,0.0001601,2]
[420453078,1776099046196,-3000.0,0.0001602,2]
[420453079,1776099046206,-3000.0,0.0001603,2]
[420453080,1776099046218,-3000.0,0.0001604,2]
[420453082,1776099046228,-3000.0,0.0001605,2]
[420453083,1776099046241,-3000.0,0.0001606,2]
[420453084,1776099046252,-3000.0,0.0001607,2]
[420453085,1776099046265,-3000.0,0.0001608,2]
[420453086,1776099046279,-3000.0,0.0001609,2]
[420453088,1776099046292,-3000.0,0.000161,2]
[420453089,1776099046302,-10368.48154708,0.000161,2]
[420453090,1776099046313,-3000.0,0.0001611,2]
[420453091,1776099046327,-3000.0,0.0001612,2]
[420453092,1776099046339,-3000.0,0.0001613,2]
[420453093,1776099046349,-150.03,0.00016137,2]
[420453094,1776099046359,-3000.0,0.0001614,2]
[420453096,1776099046519,-3000.0,0.0001615,2]
[420453097,1776099046550,-3000.0,0.0001616,2]
[420453098,1776099046565,-4198.96,0.00016164,2]
[420453100,1776099046579,-500.0,0.00016164,2]
[420453101,1776099046591,-3000.0,0.0001617,2]
[420453102,1776099046603,-3000.0,0.0001618,2]
[420453103,1776099046629,-3000.0,0.0001619,2]
[420453104,1776099046639,-3000.0,0.000162,2]
[420453105,1776099046653,-3000.0,0.0001621,2]
[420453106,1776099046668,-3000.0,0.0001622,2]
[420453107,1776099046679,-3000.0,0.0001623,2]
[420453108,1776099046693,-3000.0,0.0001624,2]
[420453109,1776099046707,-3000.0,0.0001625,2]
[420453110,1776099046716,-3000.0,0.0001626,2]
[420453112,1776099046725,-3000.0,0.0001627,2]
[420453113,1776099046740,-3000.0,0.0001628,2]
[420453114,1776099046755,-3000.0,0.0001629,2]
[420453115,1776099046764,-3000.0,0.000163,2]
[420453116,1776099046776,-10368.48154708,0.000163,2]
[420453117,1776099046788,-3000.0,0.0001631,2]
[420453118,1776099046798,-500.0,0.00016315,2]
[420453119,1776099046808,-3000.0,0.0001632,2]
[420453120,1776099046820,-3000.0,0.0001633,2]
[420453121,1776099046830,-325.2214703,0.00016338,2]
[420453122,1776099046841,-3000.0,0.0001634,2]
[420453123,1776099046850,-324.590904,0.00016344,2]
[420453125,1776099046863,-151.0,0.00016344,2]
[420453126,1776099046874,-325.2214703,0.00016344,2]
[420453127,1776099046886,-4342.721637,0.0001635,2]
[420453128,1776099046897,-4198.96,0.00016438,2]
[420453129,1776099046907,-495.43127761,0.00016438,2]
[420453130,1776099046918,-250.0,0.00016438,3]
[420453131,1776099046931,-949.563,0.00016438,7]
[420453132,1776099046942,-151.0,0.00016438,2]
[420453133,1776099046951,-151.0,0.00016438,2]
[420453134,1776099046962,-151.0,0.00016438,2]
[420453135,1776099046975,-151.0,0.00016438,2]
[420453136,1776099046987,-151.0,0.00016438,2]
[420453138,1776099047001,-151.0,0.00016438,2]
[420453139,1776099047012,-151.0,0.00016438,2]
[420453140,1776099047023,-151.0,0.00016438,2]
[420453141,1776099047038,-151.0,0.00016438,2]
[420453142,1776099047048,-151.0,0.00016438,2]
[420453143,1776099047065,-151.0,0.00016438,2]
[420453144,1776099047079,-151.0,0.00016438,2]
[420453145,1776099047107,-151.0,0.00016438,2]
[420453146,1776099047118,-326.054246,0.00016438,2]
[420453147,1776099047134,-151.0,0.00016438,2]
[420453149,1776099047163,-326.054246,0.00016438,2]
[420453150,1776099047192,-151.0,0.00016438,2]
[420453151,1776099047208,-326.054246,0.00016438,2]
[420453152,1776099047218,-161.687813,0.00016438,2]
[420453153,1776099047257,-326.054246,0.00016438,2]
[420453154,1776099047273,-326.054246,0.00016438,2]
[420453155,1776099047293,-326.054246,0.00016438,2]
[420453156,1776099047322,-326.054246,0.00016438,2]
[420453158,1776099047332,-326.054246,0.00016438,2]
[420453159,1776099047350,-326.054246,0.00016438,2]
[420453160,1776099047371,-326.054246,0.00016438,2]
[420453161,1776099047381,-326.054246,0.00016438,2]
[420453162,1776099047416,-326.054246,0.00016438,2]
[420453163,1776099047425,-326.054246,0.00016438,2]
[420453164,1776099047452,-326.054246,0.00016438,2]
[420453165,1776099047467,-326.054246,0.00016438,2]
[420453166,1776099047514,-326.054246,0.00016438,2]
[420453168,1776099047524,-326.054246,0.00016438,2]
[420453169,1776099047567,-326.054246,0.00016438,2]
[420453170,1776099047582,-326.054246,0.00016438,2]
[420453171,1776099047625,-326.05425281,0.00016438,2]
[420453172,1776099047637,-215.636308,0.00016438,2]
[420453173,1776099047652,-215.636308,0.00016438,2]
[420453175,1776099047686,-215.636308,0.00016438,2]
[420453176,1776099047699,-215.636308,0.00016438,2]
[420453177,1776099047722,-215.636308,0.00016438,2]
[420453178,1776099047735,-215.636308,0.00016438,2]
[420453179,1776099047746,-215.636308,0.00016438,2]
[420453180,1776099047758,-215.636308,0.00016438,2]
[420453181,1776099047778,-215.636308,0.00016438,2]
[420453182,1776099047803,-215.636308,0.00016438,2]
[420453183,1776099047813,-215.636308,0.00016438,2]
[420453184,1776099047831,-215.636308,0.00016438,2]
[420453186,1776099047841,-215.636308,0.00016438,2]
[420453187,1776099047852,-215.636308,0.00016438,2]
[420453188,1776099047865,-215.636308,0.00016438,2]
[420453189,1776099047884,-215.636308,0.00016438,2]
[420453190,1776099047894,-215.636308,0.00016438,2]
[420453191,1776099047912,-215.636308,0.00016438,2]
[420453192,1776099047924,-215.636308,0.00016438,2]
[420453193,1776099047936,-215.63631,0.00016438,2]
[420453194,1776099047949,-151.0,0.00016438,2]
[420453195,1776099047962,-151.0,0.00016438,2]
[420453197,1776099047986,-151.0,0.00016438,2]
[420453198,1776099047998,-151.0,0.00016438,2]
[420453199,1776099048015,-151.0,0.00016438,2]
[420453200,1776099048039,-151.0,0.00016438,2]
[420453201,1776099048051,-151.0,0.00016438,2]
[420453202,1776099048063,-151.0,0.00016438,2]
[420453203,1776099048085,-151.0,0.00016438,2]
[420453204,1776099048115,-151.0,0.00016438,2]
[420453206,1776099048125,-151.0,0.00016438,2]
[420453207,1776099048141,-151.0,0.00016438,2]
[420453208,1776099048163,-151.0,0.00016438,2]
[420453209,1776099048173,-151.0,0.00016438,2]
[420453210,1776099048204,-151.0,0.00016438,2]
[420453211,1776099048214,-151.0,0.00016438,2]
[420453212,1776099048239,-151.0,0.00016438,2]
[420453213,1776099048248,-173.041883,0.00016438,2]
[420453214,1776099048258,-154.204751,0.00016438,2]
[420453215,1776099048278,-154.204751,0.00016438,2]
[420453217,1776099048291,-154.204751,0.00016438,2]
[420453218,1776099048306,-154.204751,0.00016438,2]
[420453219,1776099048327,-154.204751,0.00016438,2]
[420453220,1776099048337,-154.204751,0.00016438,2]
[420453221,1776099048347,-154.204751,0.00016438,2]
[420453222,1776099048367,-154.204751,0.00016438,2]
[420453223,1776099048377,-154.204751,0.00016438,2]
[420453224,1776099048388,-154.204751,0.00016438,2]
[420453225,1776099048406,-154.204751,0.00016438,2]
[420453226,1776099048430,-154.204751,0.00016438,2]
[420453227,1776099048445,-154.204751,0.00016438,2]
[420453229,1776099048454,-154.204751,0.00016438,2]
[420453230,1776099048464,-154.204751,0.00016438,2]
[420453231,1776099048488,-154.204751,0.00016438,2]
[420453232,1776099048499,-154.204751,0.00016438,2]
[420453233,1776099048519,-154.204751,0.00016438,2]
[420453234,1776099048533,-154.204751,0.00016438,2]
[420453235,1776099048543,-154.20476,0.00016438,2]
[420453236,1776099048556,-5612.100685,0.00016438,2]
[420453237,1776099048578,-5612.100685,0.00016438,2]
[420453238,1776099048587,-5612.100685,0.00016438,2]
[420453240,1776099048600,-5612.100685,0.00016438,2]
[420453241,1776099048624,-5612.100685,0.00016438,2]
[420453242,1776099048633,-5612.100685,0.00016438,2]
[420453243,1776099048654,-5612.100685,0.00016438,2]
[420453244,1776099048674,-5612.100685,0.00016438,2]
[420453245,1776099048686,-5612.100685,0.00016438,2]
[420453246,1776099048699,-5612.100685,0.00016438,2]
[420453247,1776099048713,-5612.100685,0.00016438,2]
[420453248,1776099048722,-5612.100685,0.00016438,2]
[420453249,1776099048738,-5612.100685,0.00016438,2]
[420453251,1776099048752,-5612.100685,0.00016438,2]
[420453252,1776099048762,-5612.100685,0.00016438,2]
[420453253,1776099048773,-5612.100685,0.00016438,2]
[420453254,1776099048786,-5612.100685,0.00016438,2]
[420453255,1776099048796,-5612.100685,0.00016438,2]
[420453256,1776099048806,-5612.100685,0.00016438,2]
[420453257,1776099048824,-5612.100676,0.00016438,2]
[420453258,1776099048834,-151.0,0.00016438,2]
[420453259,1776099048844,-151.0,0.00016438,2]
[420453260,1776099048854,-151.0,0.00016438,2]
[420453261,1776099048873,-151.0,0.00016438,2]
[420453262,1776099048883,-151.0,0.00016438,2]
[420453264,1776099048893,-151.0,0.00016438,2]
[420453265,1776099048911,-151.0,0.00016438,2]
[420453266,1776099048919,-151.0,0.00016438,2]
[420453267,1776099048928,-178.753618,0.00016438,2]
[420453268,1776099048950,-500.0,0.00016473,2]
[420453269,1776099048960,-500.0,0.00016473,2]
[420453270,1776099048968,-500.0,0.00016473,2]
[420453271,1776099048983,-500.0,0.00016473,2]
[420453272,1776099048994,-500.0,0.00016473,2]
[420453273,1776099049004,-500.0,0.00016473,2]
[420453274,1776099049014,-500.0,0.00016473,2]
[420453275,1776099049038,-500.0,0.00016473,2]
[420453277,1776099049047,-500.0,0.00016473,2]
[420453278,1776099049073,-500.0,0.00016473,2]
[420453279,1776099049082,-609.56002453,0.00016473,2]
[420453280,1776099049124,-500.0,0.00016473,2]
[420453281,1776099049137,-500.0,0.00016473,2]
[420453282,1776099049159,-500.0,0.00016473,2]
[420453283,1776099049175,-10368.48154708,0.000165,2]
[420453284,1776099049196,-10368.48154708,0.000166,2]
[420453286,1776099049213,-800.0,0.00016647,2]
[420453287,1776099049225,-4198.96,0.00016712,2]
[420453288,1776099049240,-800.0,0.00016747,2]
[420453289,1776099049268,-10368.48154708,0.000168,2]
[420453290,1776099049281,-4198.96,0.00016986,2]
[420453291,1776099049310,-112716.1068241,0.00017,2]
[420453292,1776099049327,-10368.48154708,0.00017,2]
[420453293,1776099049341,-555.86896508,0.00017021,2]
[420453294,1776099049371,-629.42874071,0.00017021,2]
[420453296,1776099049383,-1000.0,0.00017021,2]
[420453297,1776099049411,-1000.0,0.00017021,2]
[420453298,1776099049458,-1000.0,0.00017021,2]
[420453299,1776099049470,-1000.0,0.00017021,2]
[420453300,1776099049497,-1000.0,0.00017021,2]
[420453301,1776099049508,-1000.0,0.00017021,2]
[420453302,1776099049518,-1000.0,0.00017021,2]
[420453304,1776099049544,-1000.0,0.00017021,2]
[420453305,1776099049572,-1000.0,0.00017021,2]
[420453306,1776099049582,-10368.48154708,0.000171,2]
[420453307,1776099049598,-325.2414606,0.00017166,2]
[420453308,1776099049608,-16992.62159165,0.0001718,2]
[420453309,1776099049626,-4199.0983397,0.0001726,2]
[420453310,1776099049636,-10368.48154708,0.000173,2]
[420453311,1776099049645,-755.62607305,0.00017335,2]
[420453312,1776099049657,-150.03,0.00017428,2]
[420453313,1776099049668,-800.0,0.00017488,2]
[420453314,1776099049683,-151.0,0.000175,2]
[420453315,1776099049693,-10368.48154708,0.000175,2]
[420453317,1776099049702,-1138.50004505,0.00017505,30]
[420453318,1776099049719,-269.41434217,0.00017505,30]
[420453319,1776099049729,-1500.0,0.00017568,2]
[420453320,1776099049739,-1500.0,0.00017568,2]
[420453321,1776099049750,-1500.0,0.00017568,2]
[420453322,1776099049761,-1500.0,0.00017568,2]
[420453323,1776099049773,-1500.0,0.00017568,2]
[420453324,1776099049782,-1500.0,0.00017568,2]
[420453325,1776099049792,-1500.0,0.00017568,2]
[420453326,1776099049804,-1500.0,0.00017568,2]
[420453327,1776099049816,-1500.0,0.00017568,2]
[420453328,1776099049826,-10368.48154708,0.000176,2]
[420453329,1776099049839,-406.51999022,0.00017778,2]
[420453331,1776099049850,-10368.48154708,0.000178,2]
[420453332,1776099049867,-176.62436523,0.00017877,2]
[420453333,1776099049877,-455.5567169,0.00017952,2]
[420453334,1776099049888,-455.4746423,0.00017982,2]
[420453335,1776099049898,-18772.47603972,0.00018,2]
[420453336,1776099049914,-11949.47331085,0.00018,2]
[420453337,1776099049924,-10368.48154708,0.00018,2]
[420453338,1776099049935,-28670.40123836,0.0001805,2]
[420453339,1776099049945,-275.0,0.00018091,2]
[420453340,1776099049960,-1009.32713085,0.00018116,2]
[420453341,1776099049971,-2000.0,0.00018116,2]
[420453342,1776099049990,-2000.0,0.00018116,2]
[420453344,1776099050001,-2000.0,0.00018116,2]
[420453345,1776099050010,-504.05739313,0.00018116,2]
[420453346,1776099050027,-585.09554393,0.00018116,2]
[420453347,1776099050036,-2000.0,0.00018116,2]
[420453348,1776099050046,-2000.0,0.00018116,2]
[420453349,1776099050056,-504.61840622,0.00018116,2]
[420453350,1776099050073,-2000.0,0.0001815,7]
[420453351,1776099050083,-349.0,0.00018243,2]
[420453352,1776099050094,-429.0,0.00018393,2]
[420453353,1776099050111,-10368.48154708,0.000184,2]
[420453354,1776099050121,-501.42060356,0.00018456,2]
[420453356,1776099050144,-800.0,0.00018487,2]
[420453357,1776099050156,-200.738512,0.00018493,2]
[420453358,1776099050171,-10368.48154708,0.000185,2]
[420453359,1776099050188,-254.0,0.00018664,2]
[420453360,1776099050205,-2500.0,0.00018664,2]
[420453361,1776099050219,-2500.0,0.00018664,2]
[420453362,1776099050233,-2500.0,0.00018664,2]
[420453363,1776099050255,-2341.27589984,0.00018664,2]
[420453364,1776099050275,-2500.0,0.00018664,2]
[420453366,1776099050284,-10368.48154708,0.000187,2]
[420453367,1776099050297,-455.4746423,0.00018817,2]
[420453368,1776099050312,-150.03,0.00018822,2]
[420453369,1776099050329,-300.0,0.00018822,2]
[420453370,1776099050339,-300.0,0.00018822,2]
[420453371,1776099050351,-300.0,0.00018822,2]
[420453372,1776099050362,-300.0,0.00018822,2]
[420453373,1776099050384,-300.0,0.00018822,2]
[420453374,1776099050393,-300.0,0.00018822,2]
[420453375,1776099050405,-300.0,0.00018822,2]
[420453376,1776099050419,-300.0,0.00018822,2]
[420453378,1776099050428,-306.0,0.00018822,2]
[420453379,1776099050446,-800.0,0.00018932,2]
[420453380,1776099050456,-321.68793274,0.00018987,7]
[420453381,1776099050470,-21783.74636219,0.00019,2]
[420453382,1776099050483,-506.0,0.00019,2]
[420453383,1776099050492,-237.0,0.00019,2]
[420453384,1776099050503,-592.0,0.00019,2]
[420453385,1776099050517,-1062.0,0.00019,2]
[420453386,1776099050527,-670.0,0.00019,2]
[420453387,1776099050537,-211.0,0.00019,2]
[420453388,1776099050552,-1501.556026,0.00019,2]
[420453389,1776099050562,-200.0,0.00019,2]
[420453391,1776099050573,-200.0,0.00019,2]
[420453392,1776099050583,-200.0,0.00019,2]
[420453393,1776099050597,-200.0,0.00019,2]
[420453394,1776099050613,-200.0,0.00019,2]
[420453395,1776099050627,-200.0,0.00019,2]
[420453396,1776099050639,-200.0,0.00019,2]
[420453397,1776099050654,-200.0,0.00019,2]
[420453398,1776099050670,-200.0,0.00019,2]
[420453399,1776099050686,-157.0,0.00019,2]
[420453400,1776099050708,-800.0,0.00019023,2]
[420453402,1776099050727,-200.0,0.00019178,2]
[420453403,1776099050785,-200.0,0.00019178,2]
[420453404,1776099050845,-1528.0,0.00019178,2]
[420453406,1776099050908,-679.80707696,0.00019178,2]
[420453407,1776099050932,-760.0,0.0001918,2]
[420453408,1776099050968,-1332.39534865,0.00019212,2]
[420453409,1776099051009,-3000.0,0.00019212,2]
[420453410,1776099051035,-3000.0,0.00019212,2]
[420453411,1776099051046,-3000.0,0.00019212,2]
[420453412,1776099051059,-815.80868063,0.00019335,2]
[420453414,1776099051089,-1528.0,0.00019452,2]
[420453415,1776099051126,-183.64368974,0.00019452,18]
[420453416,1776099051135,-1000.0,0.000195,2]
[420453417,1776099051162,-800.0,0.00019528,2]
[420453418,1776099051172,-800.0,0.0001955,2]
[420453419,1776099051203,-800.0,0.00019588,2]
[420453420,1776099051217,-197.4702448,0.00019626,2]
[420453421,1776099051234,-173.8711502,0.00019639,2]
[420453422,1776099051253,-800.0,0.00019646,2]
[420453424,1776099051263,-38000.0,0.00019691,3]
[420453425,1776099051300,-38000.0,0.000197,3]
[420453426,1776099051315,-800.0,0.00019702,2]
[420453427,1776099051336,-38000.0,0.00019708,3]
[420453428,1776099051349,-38000.0,0.00019717,3]
[420453429,1776099051360,-38000.0,0.00019726,3]
[420453430,1776099051375,-317.58409387,0.00019726,3]
[420453431,1776099051395,-1528.0,0.00019726,2]
[420453432,1776099051405,-183.64368974,0.00019726,18]
[420453433,1776099051427,-800.0,0.0001973,2]
[420453435,1776099051443,-3500.0,0.0001976,2]
[420453436,1776099051453,-3500.0,0.0001976,2]
[420453437,1776099051471,-3500.0,0.0001976,2]
[420453438,1776099051485,-800.0,0.00019791,2]
[420453439,1776099051496,-150.50534702,0.000198,2]
[420453440,1776099051530,-2031.57460368,0.000199,2]
[420453441,1776099051541,-224.40077656,0.00019936,2]
[420453442,1776099051563,-203.8464478,0.00019973,2]
[420453443,1776099051578,-1340.734033,0.0001998,5]
[420453445,1776099051596,-1528.0,0.0002,2]
[420453446,1776099051607,-132816.37381632,0.0002,7]
[420453447,1776099051747,-4991.96987597,0.0002,7]
[420453449,1776099051762,-31747.42952058,0.0002,7]
[420453450,1776099051790,-355.88855323,0.0002,7]
[420453451,1776099051861,-646.31172088,0.0002,7]
[420453453,1776099051906,-626.82472562,8.219e-05,2]
[420453454,1776099051917,-1985.10722668,0.00010244,2]
[420453456,1776099052105,-3014.89277332,0.00010244,2]
[420453457,1776099052118,-755.0,0.00015043,2]
[420453458,1776099052134,-797.0,0.00015043,2]
[420453459,1776099052145,-198.4175861,0.0002,7]
[420453460,1776099052161,-7472.8466271,0.0002,7]
[420453461,1776099052176,-20000.0,0.0002,2]
[420453462,1776099052188,-200.0,0.0002,2]
[420453463,1776099052199,-28406.98661463,0.0002,4]
[420453464,1776099052211,-200.0,0.0002,7]
[420453465,1776099052225,-160.0,0.0002,2]
[420453467,1776099052236,-500.0,0.0002,3]
[420453468,1776099052248,-2027.82287268,0.0002,2]
[420453469,1776099052262,-1000.0,0.0002,30]
[420453470,1776099052280,-1000.0,0.0002,2]
[420453471,1776099052290,-1000.0,0.0002,2]
[420453472,1776099052301,-11244.67649583,0.0002,2]
[420455036,1776099316623,266.0,0.0001938,120]
[420455046,1776099318120,260.0,0.00020349,120]
[420455048,1776099318146,6.0,0.00020349,120]
[420456747,1776099612565,159.0,0.0001938,120]
[420458465,1776099889173,402.75,2.002e-05,2]
[420458598,1776099910786,150.0,0.0001938,120]
[420460306,1776100231924,-3884.72753813,4.687e-05,2]
[420460307,1776100231934,-426.65314757,4.687e-05,2]
[420460308,1776100231945,-688.6193143,4.687e-05,2]
[420460309,1776100231953,-191.590741,4.734e-05,2]
[420460310,1776100231965,-315.4382815,6.584e-05,2]
[420460311,1776100231974,-300.0,7.066e-05,2]
[420460312,1776100231983,-300.0,7.067e-05,2]
[420460313,1776100231992,-300.0,7.067e-05,2]
[420460314,1776100232004,-300.0,7.067e-05,2]
[420460315,1776100232013,-300.0,7.067e-05,2]
[420460317,1776100232022,-300.0,7.067e-05,2]
[420460319,1776100232030,-11.13476967,7.067e-05,2]
[420460321,1776100232041,-288.86523033,7.067e-05,2]
[420460323,1776100232054,-300.0,7.067e-05,2]
[420460325,1776100232063,-300.0,7.067e-05,2]
[420460327,1776100232072,-300.0,7.067e-05,2]
[420460329,1776100232081,-300.0,7.067e-05,2]
[420460331,1776100232092,-12.60507882,7.067e-05,2]
[420460333,1776100232103,-287.39492118,7.067e-05,2]
[420460335,1776100232113,-300.0,7.067e-05,2]
[420460337,1776100232121,-300.0,7.067e-05,2]
[420460339,1776100232128,-300.0,7.067e-05,2]
[420460341,1776100232136,-300.0,7.067e-05,2]
[420460343,1776100232143,-600.0,7.138e-05,2]
[420460344,1776100232150,-420.0,7.773e-05,2]
[420460345,1776100232156,-720.0,7.852e-05,2]
[420460346,1776100232306,-372.21717216,8.584e-05,2]
[420460347,1776100232328,-864.0,8.637e-05,2]
[420460348,1776100232341,-154.04,9e-05,2]
[420460349,1776100232359,-154.06,9.1e-05,2]
[420460350,1776100232371,-154.06,9.2e-05,2]
[420460351,1776100232383,-154.06,9.2e-05,2]
[420460352,1776100232402,-154.06,9.3e-05,2]
[420460353,1776100232418,-154.06,9.4e-05,2]
[420460354,1776100232436,-154.06,9.5e-05,2]
[420460355,1776100232464,-1000.0,9.501e-05,2]
[420460356,1776100232480,-206.6299303,9.511e-05,2]
[420460357,1776100232504,-154.06,9.6e-05,2]
[420460358,1776100232515,-154.06,9.7e-05,2]
[420460359,1776100232526,-154.06,9.7e-05,2]
[420460360,1776100232558,-154.06,9.8e-05,2]
[420460361,1776100232577,-2027.0533749,9.831e-05,2]
[420460362,1776100232602,-173.394795,9.902e-05,2]
[420460363,1776100232621,-1000.0,0.00010451,2]
[420460364,1776100232638,-244.0,0.00010451,2]
[420460365,1776100232664,-428.99606283,0.00010584,2]
[420460366,1776100232675,-1000.0,0.00011496,2]
[420460367,1776100232707,-492.0,0.00011496,2]
[420460368,1776100232722,-188.079246,0.00011712,2]
[420460369,1776100232755,-738.0,0.00012115,2]
[420460370,1776100232781,-184.0,0.00012115,2]
[420460371,1776100232799,-531.277,0.00012115,2]
[420460372,1776100232839,-485.7749535,0.00012584,2]
[420460373,1776100232884,-1000.0,0.00012645,2]
[420460374,1776100232931,-791.0,0.00012645,2]
[420460375,1776100232944,-152.0,0.00012695,7]
[420460376,1776100232977,-152.0,0.00012695,7]
[420460377,1776100232998,-152.0,0.00012695,7]
[420460378,1776100233018,-152.0,0.000127,7]
[420460379,1776100233031,-152.0,0.000127,7]